bitfinex-derivatives/quotes_ETHF0:USTF0_20250125
["timestamp","ask_amount","ask_price","bid_price","bid_amount"]
[1737765225595,3.50540879,3290.1,3290.0,3.52473399]
[1737765226215,2.71180879,3290.1,3290.0,4.55663399]
[1737765226410,1.12460879,3290.1,3290.0,4.55663399]
[1737765226605,5.84234799,3290.5,3290.4,0.48628]
[1737765226807,0.00456073,3290.9,3290.8,0.48622]
[1737765227002,0.00456073,3290.9,3290.8,3.69402]
[1737765227216,0.24225552,3291.5,3291.4,0.48613]
[1737765227605,1.54398,3292.5,3291.3,3.2078]
[1737765227809,3.50048468,3293.0,3292.5,0.48596]
[1737765228011,3.98638468,3293.0,3292.5,0.48596]
[1737765228208,0.4859,3293.0,3292.5,0.48596]
[1737765228411,3.21236073,3293.1,3292.4,0.00456073]
[1737765228908,0.48591,3292.9,3292.4,0.00456073]
[1737765229314,3.21236073,3293.1,3292.4,0.00456073]
[1737765229503,0.48597,3292.5,3292.4,0.00456073]
[1737765231417,0.00456073,3293.1,3292.6,0.48596]
[1737765231613,0.00456073,3293.1,3292.5,0.48597]
[1737765231913,0.00456073,3293.1,3292.4,0.00456073]
[1737765232118,0.00456073,3293.1,3292.7,3.2078]
[1737765232614,0.00456073,3293.1,3292.9,0.48591]
[1737765232920,0.00456073,3293.1,3292.7,3.2078]
[1737765234019,0.00456073,3293.1,3292.5,0.48596]
[1737765234422,0.00456073,3293.1,3292.4,0.00456073]
[1737765234917,7.07914117,3293.0,3292.4,0.00456073]
[1737765235425,0.48595,3292.7,3292.4,0.00456073]
[1737765235722,0.48596,3292.6,3292.4,0.00456073]
[1737765236319,0.48595,3292.7,3292.4,0.00456073]
[1737765237412,7.07914117,3293.0,3292.4,0.00456073]
[1737765237714,3.6937,3293.0,3292.4,0.49054073]
[1737765238118,3.2078,3293.0,3292.4,0.00456073]
[1737765238313,0.48597,3292.5,3292.4,0.00456073]
[1737765238722,1.00127,3292.5,3292.4,0.00456073]
[1737765238913,0.5153,3292.5,3292.4,0.00456073]
[1737765239119,3.21236073,3293.1,3292.4,0.00456073]
[1737765239622,3.21236073,3293.1,3292.6,0.48596]
[1737765239623,0.00456073,3293.1,3292.6,0.48596]
[1737765240125,0.00456073,3293.1,3292.4,3.21236073]
[1737765240126,0.49046073,3293.1,3292.4,3.69834073]
[1737765240327,0.49045073,3293.1,3292.5,0.48597]
[1737765240621,0.00456073,3293.1,3292.4,6.21084541]
[1737765240923,0.00456073,3293.1,3293.0,0.4859]
[1737765242725,0.00456073,3293.1,3292.8,3.2078]
[1737765242928,0.00456073,3293.1,3292.9,0.4859]
[1737765243413,0.00456073,3293.1,3292.8,3.69371]
[1737765243617,0.00456073,3293.1,3292.9,0.48591]
[1737765244027,0.00456073,3293.1,3293.0,0.4859]
[1737765248423,7.3e-07,3293.1,3293.0,5.4859]
[1737765249023,7.3e-07,3293.1,3293.0,5.73022543]
[1737765249226,0.526,3294.7,3293.0,5.24432543]
[1737765249428,0.526,3294.7,3294.2,3.2078]
[1737765249830,0.526,3294.7,3294.5,0.48567]
[1737765250023,0.526,3294.7,3294.2,3.2078]
[1737765250228,0.526,3294.7,3294.6,0.48566]
[1737765250627,0.00455311,3294.8,3294.3,2.99848468]
[1737765250931,0.00455311,3294.8,3294.7,0.48565]
[1737765254125,0.00455311,3294.8,3294.7,8.48413468]
[1737765254330,3.11e-06,3294.8,3294.7,8.48413468]
[1737765254530,3.11e-06,3294.8,3294.7,5.48565]
[1737765256627,0.4814,3296.3,3295.9,0.48546]
[1737765256822,0.48545,3296.1,3295.6,3.48399468]
[1737765257037,0.96682,3296.3,3295.8,0.48547]
[1737765257236,0.4814,3296.3,3296.2,0.48543]
[1737765258028,0.50385311,3296.6,3296.3,0.4854]
[1737765258029,0.00455311,3296.6,3296.3,0.4854]
[1737765258227,0.00455311,3296.6,3296.5,6.69166468]
[1737765258635,0.00455311,3296.6,3296.5,11.69166468]
[1737765259133,0.96799,3297.9,3297.3,0.48526]
[1737765259437,3.2078,3297.8,3296.7,3.2078]
[1737765259640,0.48528,3297.2,3296.6,0.48536]
[1737765259933,3.2078,3297.3,3296.5,0.48538]
[1737765260132,0.5021,3297.1,3296.3,3.2078]
[1737765260326,3.2078,3296.9,3295.9,6.21083779]
[1737765260522,0.4828,3296.8,3295.9,6.21083779]
[1737765260732,4.33932586,3296.8,3295.9,3.21235311]
[1737765260937,0.48542,3296.3,3295.9,6.21083779]
[1737765261137,0.48543,3296.2,3295.9,3.21235311]
[1737765261824,0.48542,3296.3,3295.9,3.21235311]
[1737765262029,0.5021,3296.2,3295.9,3.21235311]
[1737765262736,0.48545,3296.1,3295.9,3.21235311]
[1737765264035,0.5021,3296.2,3295.9,3.21235311]
[1737765264239,0.5021,3296.2,3295.5,6.20628468]
[1737765264535,0.5021,3296.2,3295.9,0.48546]
[1737765264839,0.5021,3296.2,3295.9,0.48547]
[1737765265335,0.5021,3296.2,3295.5,6.20628468]
[1737765265540,0.5021,3296.2,3295.9,0.48547]
[1737765265742,0.5021,3296.2,3295.9,0.48546]
[1737765266040,0.5021,3296.2,3295.8,0.48548]
[1737765266538,0.5021,3296.2,3295.7,0.00455311]
[1737765266731,0.5021,3296.2,3296.0,0.48546]
[1737765266931,0.5021,3296.2,3295.7,0.49004311]
[1737765267236,0.5021,3296.2,3295.7,0.00455311]
[1737765267449,0.5021,3296.2,3295.8,0.48548]
[1737765267738,0.5021,3296.2,3296.1,0.48544]
[1737765273938,3.6906,3296.8,3296.7,0.48535]
[1737765274138,3.6906,3296.8,3296.1,3.2078]
[1737765274437,0.48536,3296.7,3296.4,0.4854]
[1737765274640,3.6906,3296.8,3296.1,3.2078]
[1737765274842,3.6906,3296.8,3295.9,6.20628468]
[1737765275044,0.48537,3296.6,3295.9,6.20628468]
[1737765275243,0.48537,3296.6,3296.2,0.48541]
[1737765275443,0.48544,3296.1,3295.7,0.00455311]
[1737765275633,0.48543,3296.3,3295.7,0.00455311]
[1737765275837,3.2078,3296.4,3295.7,0.00455311]
[1737765275838,0.97673,3296.2,3295.9,0.48546]
[1737765276038,0.4913,3296.2,3296.0,0.48544]
[1737765277046,0.4913,3296.2,3296.1,0.48544]
[1737765277239,0.96814,3296.8,3296.6,0.48537]
[1737765277240,0.4828,3296.8,3296.6,0.48537]
[1737765277439,0.4913,3296.7,3296.6,0.48537]
[1737765278243,0.4913,3296.7,3295.9,6.20628468]
[1737765278441,0.48545,3296.1,3295.7,0.00455311]
[1737765278639,0.48545,3296.1,3295.8,0.48548]
[1737765278848,0.48545,3296.1,3295.7,0.49004311]
[1737765279039,3.2078,3296.3,3295.9,2.99848468]
[1737765279239,3.6991,3296.7,3295.9,6.20628468]
[1737765279440,3.6991,3296.7,3296.0,0.48546]
[1737765279634,3.6991,3296.7,3296.6,0.48537]
[1737765279841,0.4913,3296.7,3296.6,0.48537]
[1737765284145,0.4828,3296.8,3296.3,6.20628468]
[1737765284352,0.4828,3296.8,3296.7,0.48535]
[1737765290351,0.00297288,3297.2,3296.3,6.20628468]
[1737765290754,0.00297288,3297.2,3296.9,0.48532]
[1737765290955,0.48826288,3297.2,3296.3,6.20628468]
[1737765291150,0.48826288,3297.2,3296.4,0.4854]
[1737765291348,0.48826288,3297.2,3297.0,0.48531]
[1737765291557,0.00297288,3297.2,3297.1,3.48377468]
[1737765293554,0.5179,3298.1,3297.1,11.20628468]
[1737765293761,0.5179,3298.1,3298.0,3.48364468]
[1737765294753,0.00455311,3298.4,3298.3,0.48511]
[1737765294951,0.00455311,3298.4,3298.2,0.48513]
[1737765295349,0.48966311,3298.4,3298.1,0.48514]
[1737765295661,0.48966311,3298.4,3298.2,0.48513]
[1737765296257,0.00455311,3298.4,3297.7,3.21235311]
[1737765296458,3.2078,3298.1,3297.7,0.00455311]
[1737765296760,0.48516,3298.0,3297.7,0.48975311]
[1737765297556,0.00455311,3298.4,3298.3,0.48512]
[1737765297955,0.00455311,3298.4,3298.1,3.2078]
[1737765298153,0.00455311,3298.4,3298.1,3.69294]
[1737765298354,0.00455311,3298.4,3297.8,2.99848468]
[1737765298559,0.48513,3298.3,3297.8,3.48366468]
[1737765298758,0.48513,3298.3,3297.9,0.48518]
[1737765298959,0.00455311,3298.4,3297.8,2.99848468]
[1737765299159,0.00455311,3298.4,3297.8,3.48367468]
[1737765299353,0.48514,3298.2,3297.8,2.99848468]
[1737765299662,0.48514,3298.2,3297.9,0.48517]
[1737765300050,0.48513,3298.3,3298.0,0.48516]
[1737765300260,0.48966311,3298.4,3298.1,0.48514]
[1737765300855,0.00455311,3298.4,3297.8,2.99848468]
[1737765301058,0.00455311,3298.4,3297.7,3.21235311]
[1737765301059,0.48519,3297.8,3297.7,0.00455311]
[1737765301260,3.2078,3298.1,3296.6,2.99848468]
[1737765301261,1.038,3297.9,3296.6,2.99848468]
[1737765301460,3.7261,3298.0,3297.0,2.99848468]
[1737765301662,3.7261,3298.0,3297.7,0.4852]
[1737765301865,3.7261,3298.0,3297.9,0.48518]
[1737765302366,0.5183,3298.0,3297.9,0.48518]
[1737765302859,0.00455311,3298.4,3297.6,3.21235311]
[1737765303053,0.00455311,3298.4,3298.3,0.48512]
[1737765303260,0.00455311,3298.4,3297.6,3.21235311]
[1737765303655,0.00455311,3298.4,3298.1,0.48514]
[1737765304067,0.00455311,3298.4,3297.8,2.33168624]
[1737765304364,0.48512,3298.3,3297.9,0.48517]
[1737765304669,0.49345311,3298.4,3298.0,0.48516]
[1737765304864,0.49345311,3298.4,3297.8,2.33168624]
[1737765305462,0.48515,3298.1,3297.7,0.4852]
[1737765305668,0.48515,3298.1,3297.6,3.21235311]
[1737765305669,3.2078,3298.1,3297.6,3.21235311]
[1737765305867,0.48527,3297.3,3297.0,0.4853]
[1737765306072,0.4853,3297.1,3296.7,0.48535]
[1737765306361,3.2078,3296.9,3296.6,2.33168624]
[1737765306569,3.69314,3296.9,3296.6,2.33168624]
[1737765306763,3.2078,3296.9,3296.6,2.33168624]
[1737765306961,0.48538,3296.6,3296.4,0.00455311]
[1737765307359,3.2078,3296.9,3296.4,0.00455311]
[1737765307360,0.48536,3296.7,3296.4,0.00455311]
[1737765307554,0.00455311,3296.8,3296.4,0.00455311]
[1737765307855,0.00455311,3296.8,3296.6,0.48536]
[1737765308063,0.00455311,3296.8,3296.4,0.00455311]
[1737765308064,0.00455311,3296.8,3296.7,0.48535]
[1737765308263,0.00455311,3296.8,3296.4,0.00455311]
[1737765308667,0.48538,3296.6,3296.4,0.00455311]
[1737765309054,0.5088,3296.5,3296.4,0.00455311]
[1737765309263,0.5088,3296.5,3296.4,0.48995311]
[1737765309660,0.5088,3296.5,3296.4,0.00455311]
[1737765310557,4.20198,3296.5,3296.4,0.00455311]
[1737765310757,4.20198,3296.5,3295.9,6.03561723]
[1737765310758,4.20198,3296.5,3295.9,3.2078]
[1737765310963,0.48546,3296.0,3295.9,3.2078]
[1737765311162,0.4892,3296.4,3295.9,3.2078]
[1737765311360,0.48544,3296.2,3295.9,3.2078]
[1737765311865,0.48544,3296.1,3295.9,3.2078]
[1737765312059,0.48546,3296.0,3295.9,3.2078]
[1737765312966,3.2078,3296.0,3295.7,0.00455311]
[1737765313164,0.48549,3295.8,3295.7,0.00455311]
[1737765313970,0.48547,3295.9,3295.7,0.00455311]
[1737765314165,7.21474673,3296.0,3295.7,0.00455311]
[1737765314462,3.2078,3296.0,3295.8,0.48548]
[1737765315360,3.2078,3296.0,3295.7,0.00455311]
[1737765315764,0.48549,3295.8,3295.7,0.00455311]
[1737765316169,4.34837054,3295.8,3295.7,0.00455311]
[1737765320365,3.86288054,3295.8,3294.9,3.6983]
[1737765320677,0.4856,3295.0,3294.9,3.2078]
[1737765320859,0.48564,3294.8,3294.4,0.48568]
[1737765321063,0.48565,3294.7,3294.3,3.31351723]
[1737765321568,0.48571,3294.3,3294.2,0.00455311]
[1737765323269,4.45358669,3294.3,3294.2,0.00455311]
[1737765327262,0.48571,3294.3,3294.2,0.00455311]
[1737765327976,4.52134308,3294.3,3294.2,0.00455311]
[1737765328674,1.029,3294.4,3294.2,0.00455311]
[1737765329077,3.2078,3294.6,3294.2,0.00455311]
[1737765329273,3.2078,3294.6,3294.5,0.48568]
[1737765329881,3.2078,3294.6,3294.3,0.5229]
[1737765330978,3.2078,3294.6,3294.4,0.48569]
[1737765331377,0.00455311,3294.8,3294.7,0.48565]
[1737765333682,0.00455311,3294.8,3294.7,3.31614575]
[1737765336285,1.51549,3295.8,3295.5,0.48552]
[1737765336475,1.03,3295.8,3294.7,2.83049575]
[1737765336680,3.2078,3295.4,3294.9,0.48561]
[1737765336885,0.48558,3295.2,3294.9,0.48561]
[1737765338975,3.21235311,3295.4,3294.7,0.48564]
[1737765338976,0.48556,3295.3,3294.7,0.48564]
[1737765339180,3.21235311,3295.4,3294.3,3.35339575]
[1737765339388,0.48557,3295.3,3294.9,0.48562]
[1737765339579,0.48557,3295.3,3294.3,3.35339575]
[1737765339580,3.21235311,3295.4,3294.8,0.48563]
[1737765339780,0.48556,3295.3,3294.9,0.48562]
[1737765340379,0.48571,3294.3,3294.2,0.00455311]
[1737765340778,0.48571,3294.3,3293.4,3.69363]
[1737765340985,0.48581,3293.7,3293.3,1.0059]
[1737765341187,0.48581,3293.7,3293.3,0.493]
[1737765341492,3.2078,3293.9,3293.3,0.493]
[1737765341684,0.48579,3293.8,3293.4,0.48584]
[1737765342290,0.4858,3293.7,3293.3,0.98340311]
[1737765342497,3.2078,3293.9,3293.3,0.49755311]
[1737765342684,3.69357,3293.9,3293.4,0.48583]
[1737765343194,0.48578,3293.8,3293.4,0.48583]
[1737765344389,0.48578,3293.8,3293.5,0.48582]
[1737765344784,3.2078,3293.9,3293.3,0.49755311]
[1737765344985,0.48582,3293.6,3293.3,0.49755311]
[1737765345184,3.2078,3293.9,3293.3,0.49755311]
[1737765345185,3.95088515,3293.8,3293.3,0.49755311]
[1737765345386,3.2078,3293.9,3293.6,0.4858]
[1737765345579,3.2078,3293.9,3293.3,0.49755311]
[1737765345783,0.48579,3293.8,3293.4,0.48583]
[1737765346191,3.2078,3293.9,3293.3,0.00455311]
[1737765346395,4.011912,3293.7,3293.3,0.49040311]
[1737765346591,0.4858,3293.7,3293.3,0.49040311]
[1737765346791,3.2078,3293.9,3293.3,0.49040311]
[1737765347087,3.2078,3293.5,3293.3,0.00455311]
[1737765347290,3.69363,3293.5,3293.3,0.00455311]
[1737765347491,3.2078,3293.5,3293.3,0.00455311]
[1737765347891,3.69363,3293.5,3293.3,0.00455311]
[1737765348093,0.48584,3293.4,3293.3,0.00455311]
[1737765348289,5.53940989,3293.4,3293.3,0.00455311]
[1737765348489,0.48591,3292.9,3292.5,0.48597]
[1737765348693,0.48591,3292.9,3292.4,0.48598]
[1737765348991,3.2078,3293.1,3292.2,0.4825]
[1737765349295,3.2078,3293.1,3291.9,6.03829575]
[1737765349296,3.2078,3292.7,3291.9,6.03829575]
[1737765349483,3.2078,3292.7,3292.0,0.00303542]
[1737765349690,0.48597,3292.5,3292.1,0.48602]
[1737765349895,0.48597,3292.5,3292.0,0.00303542]
[1737765350093,0.48597,3292.5,3292.0,0.48907542]
[1737765350603,1.0089,3292.6,3292.0,0.00303542]
[1737765350788,3.2078,3292.7,3292.6,0.48596]
[1737765350989,3.2078,3293.1,3292.3,6.03829575]
[1737765351193,3.2078,3293.1,3292.9,0.48591]
[1737765351391,3.2078,3293.1,3293.0,0.4859]
[1737765351593,3.2078,3293.1,3292.9,0.48591]
[1737765351793,3.2078,3293.1,3293.0,0.4859]
[1737765352902,4.2328,3293.6,3292.7,6.03829575]
[1737765353101,4.2328,3293.6,3293.3,0.48585]
[1737765353400,4.71861,3293.6,3293.1,0.48587]
[1737765353596,4.71861,3293.6,3292.8,1.4941]
[1737765353995,3.69368,3293.1,3292.4,0.48599]
[1737765354298,3.69368,3293.1,3292.6,0.48595]
[1737765354600,0.4859,3293.0,3292.5,0.48596]
[1737765354802,0.4859,3293.0,3292.6,0.48595]
[1737765355100,3.2078,3293.1,3292.3,3.32569575]
[1737765355397,3.2078,3293.5,3293.4,0.48584]
[1737765357405,0.00455311,3293.7,3293.3,2.33836846]
[1737765357600,0.00455311,3293.7,3293.2,3.2078]
[1737765357601,0.00455311,3293.7,3293.6,2.82417846]
[1737765357801,0.00455311,3293.7,3293.2,3.2078]
[1737765357802,0.00455311,3293.7,3293.3,2.33836846]
[1737765358203,0.00455311,3293.7,3293.6,0.48581]
[1737765358592,0.00455311,3293.7,3293.2,3.2078]
[1737765358797,0.51095311,3293.7,3293.2,3.69366]
[1737765358997,0.51095311,3293.7,3293.2,3.2078]
[1737765359298,0.48592,3292.9,3292.5,0.48597]
[1737765359499,0.48595,3292.7,3292.4,2.86756846]
[1737765359694,0.48594,3292.8,3292.4,2.82434846]
[1737765359892,0.5064,3292.8,3292.5,0.48596]
[1737765360489,0.5064,3292.8,3292.5,0.48597]
[1737765360692,3.2078,3293.3,3292.7,2.33836846]
[1737765360901,0.49036311,3293.7,3293.3,0.48585]
[1737765361099,0.00455311,3293.7,3293.0,2.33836846]
[1737765361305,0.00455311,3293.7,3293.4,0.48583]
[1737765361603,0.00455311,3293.7,3293.0,2.33836846]
[1737765361799,0.49035311,3293.7,3293.4,0.48584]
[1737765362000,0.00455311,3293.7,3293.4,0.48584]
[1737765362300,0.00455311,3293.7,3293.0,2.83361191]
[1737765362506,0.00455311,3293.7,3293.0,6.04141191]
[1737765362703,0.00455311,3293.7,3293.4,0.48583]
[1737765363310,0.00455311,3293.7,3293.6,0.48581]
[1737765363905,0.00455311,3293.7,3293.0,6.04141191]
[1737765364104,4.01011811,3293.7,3292.8,0.5292]
[1737765364309,3.2078,3293.4,3292.8,0.5292]
[1737765364509,0.48587,3293.2,3292.8,1.01512]
[1737765364810,3.2078,3293.4,3292.8,1.01512]
[1737765364811,0.48586,3293.3,3292.9,0.48591]
[1737765365613,3.2078,3293.4,3292.2,6.04141191]
[1737765365816,0.48591,3292.9,3292.2,3.2078]
[1737765366117,0.486,3292.3,3292.2,3.2078]
[1737765366318,1.5191,3292.8,3292.2,3.2078]
[1737765366622,0.48598,3292.5,3292.2,3.2078]
[1737765367216,0.48599,3292.4,3292.2,3.2078]
[1737765368208,1.5191,3292.8,3292.2,3.2078]
[1737765368409,0.48597,3292.6,3292.2,3.69381]
[1737765368610,0.48597,3292.5,3292.2,3.2078]
[1737765369309,1.5191,3292.8,3292.2,3.2078]
[1737765369509,0.48596,3292.6,3292.2,3.69381]
[1737765369716,1.5191,3292.8,3292.2,3.2078]
[1737765369917,0.48597,3292.5,3292.2,3.2078]
[1737765370310,0.48599,3292.4,3292.2,3.2078]
[1737765370921,0.48598,3292.5,3292.2,3.2078]
[1737765371516,0.48599,3292.4,3292.2,3.2078]
[1737765371818,3.2078,3292.4,3292.3,0.486]
[1737765372022,3.2078,3293.0,3292.2,2.83361191]
[1737765372219,0.48591,3292.9,3292.5,0.48596]
[1737765372412,3.2078,3293.0,3292.3,1.4907]
[1737765372413,0.48593,3292.8,3292.4,0.48598]
[1737765372914,0.4833,3292.9,3292.3,0.496]
[1737765373115,0.48596,3292.7,3292.3,0.98199]
[1737765373312,3.2078,3292.6,3292.0,3.21083542]
[1737765373515,0.48598,3292.5,3292.1,0.48602]
[1737765374512,0.48598,3292.5,3292.1,0.48603]
[1737765374718,0.48599,3292.4,3292.0,3.69687542]
[1737765375818,0.48597,3292.5,3292.0,3.21083542]
[1737765376030,0.48603,3292.1,3292.0,3.21083542]
[1737765376529,0.48602,3292.2,3292.0,3.21083542]
[1737765377522,0.48599,3292.4,3292.1,0.48603]
[1737765377822,3.2078,3292.2,3292.0,0.00303542]
[1737765378022,0.99523,3292.1,3292.0,0.00303542]
[1737765378825,3.2078,3292.2,3292.0,0.00303542]
[1737765379019,0.5216,3292.5,3292.0,0.00303542]
[1737765379325,0.5216,3292.5,3292.2,0.48601]
[1737765379720,0.5216,3292.5,3292.3,0.48599]
[1737765381024,3.2078,3292.8,3292.7,0.48594]
[1737765381226,7.00102676,3293.2,3293.1,0.48588]
[1737765381820,7.00102676,3293.2,3293.1,3.69368]
[1737765382324,7.00102676,3293.2,3293.1,4.20798]
[1737765382726,3.10573676,3293.2,3293.1,9.20798]
[1737765383030,0.93759676,3293.2,3293.1,9.20798]
[1737765383333,1.46049676,3294.8,3293.1,9.20798]
[1737765383631,3.2078,3293.5,3292.6,2.83361191]
[1737765383821,0.5089,3293.4,3292.6,2.83361191]
[1737765384025,4.89022996,3293.4,3292.2,2.83361191]
[1737765384226,0.48594,3292.8,3292.3,0.48599]
[1737765384535,0.48594,3292.8,3292.4,0.48598]
[1737765384732,3.2078,3293.0,3292.1,0.48603]
[1737765384929,0.48596,3292.6,3292.1,0.48603]
[1737765385121,3.2078,3293.0,3292.2,2.83361191]
[1737765385327,0.98987,3293.3,3292.9,0.48591]
[1737765385725,0.504,3293.3,3292.9,0.48591]
[1737765385926,0.504,3293.3,3292.4,3.2078]
[1737765386131,0.48597,3292.6,3292.2,3.31962191]
[1737765386432,0.48597,3292.6,3292.2,2.83361191]
[1737765386636,0.48599,3292.4,3292.0,3.21083542]
[1737765386929,0.48598,3292.5,3292.0,3.69687542]
[1737765387127,0.48594,3292.8,3292.3,0.48599]
[1737765387428,0.48594,3292.8,3292.0,3.21083542]
[1737765387630,0.48594,3292.8,3292.3,0.486]
[1737765390331,3.87973278,3292.9,3292.0,3.21083542]
[1737765390524,3.2078,3293.0,3292.0,3.21083542]
[1737765390725,3.2078,3293.0,3292.2,2.83361191]
[1737765391040,0.504,3293.3,3292.2,2.83361191]
[1737765391333,0.504,3293.3,3292.3,0.486]
[1737765391635,0.504,3293.3,3292.0,3.21083542]
[1737765391636,3.2078,3293.0,3292.0,3.21083542]
[1737765391836,0.486,3292.4,3292.0,3.21083542]
[1737765392328,0.486,3292.4,3292.0,3.69687542]
[1737765392830,0.486,3292.4,3292.0,3.21083542]
[1737765393028,3.96380939,3292.9,3292.0,3.21083542]
[1737765393229,0.486,3292.4,3292.0,3.21083542]
[1737765393428,0.48601,3292.3,3292.0,3.21083542]
[1737765393730,3.96380939,3292.9,3292.0,3.21083542]
[1737765393925,0.48603,3292.2,3292.0,3.21083542]
[1737765394124,1.024,3292.8,3292.0,3.21083542]
[1737765394334,0.48597,3292.6,3292.1,0.48602]
[1737765394742,0.48597,3292.6,3292.2,0.48602]
[1737765395230,0.4988,3292.7,3292.0,3.21083542]
[1737765395429,0.4988,3292.7,3292.3,0.48599]
[1737765396835,0.98475,3292.7,3292.3,0.48599]
[1737765397034,0.4988,3292.7,3292.1,2.33971863]
[1737765397228,0.486,3292.4,3292.0,3.69687542]
[1737765397430,3.7325,3292.6,3292.0,3.21083542]
[1737765397627,7.69852289,3292.6,3292.0,3.21083542]
[1737765397938,4.21846,3292.6,3292.0,3.21083542]
[1737765398125,0.5247,3292.6,3292.1,0.48602]
[1737765398328,0.48597,3292.5,3292.1,0.48602]
[1737765398724,3.2078,3292.2,3292.0,0.00303542]
[1737765398937,3.2078,3292.2,3291.6,3.2078]
[1737765399237,0.48609,3291.8,3291.6,3.2078]
[1737765399436,0.48609,3291.7,3291.6,3.2078]
[1737765399635,0.4873,3292.1,3291.6,3.2078]
[1737765399830,0.48607,3291.9,3291.6,3.2078]
[1737765400635,0.48607,3291.9,3291.4,0.48613]
[1737765401731,0.48607,3291.9,3291.5,0.48612]
[1737765402038,3.21235311,3292.2,3291.5,5.54751863]
[1737765402340,3.21235311,3292.2,3291.9,0.48605]
[1737765402839,3.69837311,3292.2,3291.9,0.48605]
[1737765403432,0.49057311,3292.2,3291.5,2.33971863]
[1737765403624,0.49057311,3292.2,3291.8,0.48607]
[1737765406432,0.48603,3292.1,3291.8,0.48607]
[1737765406632,0.00455311,3292.2,3291.8,0.48607]
[1737765406832,0.49057311,3292.2,3291.9,0.48605]
[1737765407129,0.49057311,3292.2,3291.8,0.48606]
[1737765408146,0.00455311,3292.2,3291.5,2.33971863]
[1737765408432,0.00455311,3292.2,3292.1,0.48603]
[1737765409036,0.00455311,3292.2,3292.0,0.48604]
[1737765409338,0.00455311,3292.2,3292.0,0.48603]
[1737765410241,0.00455311,3292.2,3292.1,0.48603]
[1737765413046,0.00455311,3292.2,3292.0,0.48604]
[1737765413339,0.00455311,3292.2,3291.8,2.33971863]
[1737765413639,0.00455311,3292.2,3292.1,0.48603]
[1737765415548,0.00455311,3292.2,3292.0,0.48604]
[1737765417546,0.00455311,3292.2,3292.1,0.48603]
[1737765418546,0.00455311,3292.2,3292.1,2.82574863]
[1737765421447,0.00455311,3292.2,3291.9,0.48605]
[1737765421641,0.00455311,3292.2,3291.8,2.33971863]
[1737765421843,0.00455311,3292.2,3292.1,0.48603]
[1737765424047,0.00455311,3292.2,3292.1,2.82574863]
[1737765424346,5.00455311,3292.2,3291.5,3.2078]
[1737765424544,0.48609,3291.7,3291.5,3.2078]
[1737765424849,0.9954,3291.6,3291.5,3.2078]
[1737765425258,0.5093,3291.6,3290.9,10.29505785]
[1737765425442,0.5093,3291.6,3291.1,0.48617]
[1737765425649,0.48614,3291.4,3291.1,0.48617]
[1737765425849,0.5093,3291.6,3290.9,10.29505785]
[1737765426039,0.48617,3291.2,3290.9,7.95533922]
[1737765426245,1.49006,3291.3,3290.9,8.44153922]
[1737765426445,1.49006,3291.3,3290.9,3.694]
[1737765427051,0.4915,3291.3,3291.2,2.33971863]
[1737765427253,0.4915,3291.3,3291.2,2.82587863]
[1737765427450,0.4915,3291.3,3291.2,2.33971863]
[1737765427648,0.4915,3291.3,3290.9,5.54751863]
[1737765427855,3.6993,3291.3,3290.6,2.33971863]
[1737765428152,3.6993,3291.3,3290.7,0.48624]
[1737765428851,0.4862,3291.0,3290.6,2.82596863]
[1737765429154,0.4862,3291.0,3290.7,0.48624]
[1737765429450,3.6993,3291.3,3290.7,0.48624]
[1737765429648,0.48618,3291.1,3290.7,0.48624]
[1737765429845,3.6993,3291.3,3290.5,3.2078]
[1737765430053,3.6993,3291.3,3290.0,4.74753922]
[1737765430054,0.48625,3290.6,3290.1,3.69413]
[1737765430242,0.98288,3290.5,3290.1,3.69413]
[1737765430558,0.48628,3290.4,3290.1,3.69413]
[1737765430753,0.98287,3290.5,3290.1,3.69413]
[1737765430951,0.4863,3290.3,3289.9,0.48635]
[1737765431151,3.7044,3290.5,3289.7,3.2078]
[1737765431456,3.86924023,3290.4,3289.5,4.74753922]
[1737765431756,0.00455311,3290.4,3289.7,2.33971863]
[1737765432053,0.00455311,3290.4,3289.9,0.48635]
[1737765432459,0.48638,3289.8,3289.5,4.74753922]
[1737765432647,3.6942,3289.6,3289.5,3.95323922]
[1737765433345,0.48643,3289.4,3289.3,7.07406752]
[1737765434349,7.079591,3289.6,3289.3,7.07406752]
[1737765434547,7.079591,3289.6,3288.6,3.2078]
[1737765434844,3.6942,3289.6,3289.0,0.48648]
[1737765435045,3.2078,3289.6,3288.6,3.2078]
[1737765435553,3.2078,3289.6,3289.1,0.48647]
[1737765436245,3.2078,3289.6,3288.7,0.5013]
[1737765436452,0.4966,3289.7,3289.6,0.4864]
[1737765436648,0.4956,3289.9,3289.1,2.33971863]
[1737765436844,0.4956,3289.9,3289.8,0.48637]
[1737765437255,0.4956,3289.9,3289.2,0.4813]
[1737765437455,3.2078,3290.0,3289.2,0.4813]
[1737765437660,3.2078,3290.0,3289.7,0.48638]
[1737765438053,3.2078,3290.0,3289.9,0.48636]
[1737765438253,0.4967,3290.2,3290.1,0.48633]
[1737765438659,3.21235311,3290.4,3290.2,0.4863]
[1737765439861,3.69864311,3290.4,3289.5,0.5013]
[1737765440161,0.48631,3290.2,3289.6,0.48639]
[1737765440363,3.93749261,3290.3,3289.5,0.5013]
[1737765440547,3.21235311,3290.4,3290.1,0.48631]
[1737765440749,0.4863,3290.3,3289.7,0.48637]
[1737765440945,3.21235311,3290.4,3289.5,0.5013]
[1737765441159,3.69864311,3290.4,3289.8,0.48637]
[1737765441346,3.69864311,3290.4,3289.9,0.48636]
[1737765441544,3.69864311,3290.4,3289.8,0.48636]
[1737765442259,3.21235311,3290.4,3290.0,0.48633]
[1737765443152,3.21235311,3290.4,3289.7,2.33971863]
[1737765443456,0.00455311,3290.4,3290.3,6.03381863]
[1737765444056,3.11e-06,3290.4,3290.3,6.03381863]
[1737765446656,3.11e-06,3290.4,3290.3,3.6941]
[1737765447754,3.11e-06,3290.4,3290.3,3.2078]
[1737765447960,3.20780311,3290.4,3290.0,0.00456002]
[1737765448163,0.48632,3290.2,3290.0,0.00456002]
[1737765448665,1.00412,3290.2,3290.0,0.00456002]